Workbook

Sheet besoin_cultures
A1: Besoins des cultures | C1: (kg / ha)
A2: Conseil de fertilisation des cultures (basé sur exportations), en considérant le sol sans déséquilibres (ni carences, ci excès)
A5: Fourrages tempérés | C5: données issues du guide de la fertilisation organique, p.184, pour les fourrages tempérés
A7: Rendement | B7: 10 | C7: 12 | D7: 15 | E7: 18 | F7: 20 | G7: 22 | H7: 25
A8: (t / ha)
A9: N | B9: 300 | C9: 360 | D9: 450 | E9: 540 | F9: 600 | G9: 660 | H9: 750
A10: P2O5 | B10: =60*3 -> 180 | C10: =B10/10*12 -> 216 | D10: 270 | E10: 324 | F10: 360 | G10: 396 | H10: 450 | I10: (pour 10t/ha, 60'* 3 par rapport au guide de la ferti organique puis règle de trois)
A11: K2O | B11: 220 | C11: =B11/10*12 -> 264 | D11: 330 | E11: 396 | F11: 440 | G11: 484 | H11: 550 | I11: (valeur minimale du guide retenue pour 10t/ha puis règle de trois)
A14: Légumes | C14: Source: CTIFM
A21: Ail | B21: Rendement (t/ha) | C21: N | D21: P2O5 | E21: K2O | F21: Comcombre | G21: Rendement (t/ha) | H21: N | I21: P2O5 | J21: K2O | K21: Pastèque | L21: Rendement (t/ha) | M21: N | N21: P2O5 | O21: K2O
B22: 4 | C22: 80 | D22: 60 | E22: 120 | G22: 20 | H22: 140 | I22: 90 | J22: 220 | L22: 30 | M22: 60 | N22: 40 | O22: 120
B23: 6 | C23: 100 | D23: 70 | E23: 140 | G23: 30 | H23: 160 | I23: 100 | J23: 240 | L23: 35 | M23: 80 | N23: 50 | O23: 140
B24: 8 | C24: 120 | D24: 80 | E24: 160 | G24: 40 | H24: 180 | I24: 110 | J24: 260 | L24: 40 | M24: 100 | N24: 60 | O24: 160
B25: 10 | C25: 140 | D25: 90 | E25: 180 | G25: 50 | H25: 200 | I25: 120 | J25: 280 | L25: 45 | M25: 120 | N25: 70 | O25: 180
B26: 12 | C26: 160 | D26: 100 | E26: 200 | G26: 60 | H26: 220 | I26: 130 | J26: 300 | L26: 50 | M26: 140 | N26: 80 | O26: 200
A27: Artichaut | B27: Rendement (t/ha) | C27: N | D27: P2O5 | E27: K2O | F27: Courgette | G27: Rendement (t/ha) | H27: N | I27: P2O5 | J27: K2O | K27: Poireau | L27: Rendement (t/ha) | M27: N | N27: P2O5 | O27: K2O
B28: 18 | C28: 180 | D28: 70 | E28: 300 | G28: 20 | H28: 80 | I28: 60 | J28: 160 | L28: 20 | M28: 130 | N28: 50 | O28: 180
B29: 20 | C29: 200 | D29: 80 | E29: 330 | G29: 25 | H29: 100 | I29: 70 | J29: 200 | L29: 25 | M29: 160 | N29: 60 | O29: 210
B30: 22 | C30: 220 | D30: 90 | E30: 360 | G30: 30 | H30: 120 | I30: 80 | J30: 240 | L30: 30 | M30: 190 | N30: 70 | O30: 240
B31: 24 | C31: 240 | D31: 100 | E31: 390 | G31: 35 | H31: 140 | I31: 90 | J31: 280 | L31: 35 | M31: 210 | N31: 80 | O31: 270
B32: 26 | C32: 260 | D32: 110 | E32: 420 | G32: 40 | H32: 160 | I32: 100 | J32: 320 | L32: 40 | M32: 240 | N32: 90 | O32: 300
A33: Aubergine | B33: Rendement (t/ha) | C33: N | D33: P2O5 | E33: K2O | F33: Haricot vert | G33: Rendement (t/ha) | H33: N | I33: P2O5 | J33: K2O | K33: Poivron | L33: Rendement (t/ha) | M33: N | N33: P2O5 | O33: K2O
B34: 30 | C34: 150 | D34: 90 | E34: 200 | G34: 6 | H34: 50 | I34: 60 | J34: 80 | L34: 20 | M34: 150 | N34: 80 | O34: 250
B35: 40 | C35: 170 | D35: 100 | E35: 240 | G35: 8 | H35: 75 | I35: 70 | J35: 100 | L35: 30 | M35: 180 | N35: 90 | O35: 280
B36: 50 | C36: 190 | D36: 110 | E36: 280 | G36: 10 | H36: 100 | I36: 80 | J36: 120 | L36: 40 | M36: 210 | N36: 100 | O36: 310
B37: 60 | C37: 210 | D37: 120 | E37: 320 | G37: 12 | H37: 125 | I37: 90 | J37: 140 | L37: 50 | M37: 240 | N37: 110 | O37: 340
B38: 70 | C38: 230 | D38: 130 | E38: 360 | G38: 14 | H38: 150 | I38: 100 | J38: 160 | L38: 60 | M38: 270 | N38: 120 | O38: 370
A39: Betterave rouge | B39: Rendement (t/ha) | C39: N | D39: P2O5 | E39: K2O | F39: Laitue | G39: Rendement (t/ha) | H39: N | I39: P2O5 | J39: K2O | K39: Pomme de terre | L39: Rendement (t/ha) | M39: N | N39: P2O5 | O39: K2O
B40: 40 | C40: 150 | D40: 80 | E40: 350 | G40: 40 | H40: 90 | I40: 55 | J40: 180 | L40: 15 | M40: 75 | N40: 40 | O40: 130
B41: 45 | C41: 180 | D41: 90 | E41: 400 | G41: 45 | H41: 100 | I41: 60 | J41: 220 | L41: 20 | M41: 100 | N41: 50 | O41: 180
B42: 50 | C42: 210 | D42: 100 | E42: 450 | G42: 50 | H42: 120 | I42: 65 | J42: 240 | L42: 25 | M42: 125 | N42: 60 | O42: 220
B43: 55 | C43: 230 | D43: 110 | E43: 500 | G43: 55 | H43: 130 | I43: 70 | J43: 260 | L43: 30 | M43: 150 | N43: 70 | O43: 270
B44: 60 | C44: 250 | D44: 120 | E44: 550 | G44: 60 | H44: 140 | I44: 75 | J44: 280 | L44: 35 | M44: 175 | N44: 80 | O44: 310
A45: Carotte | B45: Rendement (t/ha) | C45: N | D45: P2O5 | E45: K2O | F45: Melon | G45: Rendement (t/ha) | H45: N | I45: P2O5 | J45: K2O | K45: Radis | L45: Rendement (t/ha) | M45: N | N45: P2O5 | O45: K2O
B46: 25 | C46: 70 | D46: 60 | E46: 150 | G46: 10 | H46: 40 | I46: 50 | J46: 70 | L46: 15 | M46: 50 | N46: 50 | O46: 80
B47: 30 | C47: 80 | D47: 65 | E47: 180 | G47: 20 | H47: 80 | I47: 60 | J47: 140 | L47: 18 | M47: 60 | N47: 55 | O47: 90
B48: 35 | C48: 90 | D48: 70 | E48: 210 | G48: 30 | H48: 120 | I48: 70 | J48: 210 | L48: 21 | M48: 70 | N48: 60 | O48: 100
B49: 40 | C49: 100 | D49: 75 | E49: 240 | G49: 40 | H49: 160 | I49: 80 | J49: 280 | L49: 24 | M49: 80 | N49: 65 | O49: 110
B50: 45 | C50: 110 | D50: 80 | E50: 270 | G50: 50 | H50: 200 | I50: 90 | J50: 350 | L50: 27 | M50: 90 | N50: 70 | O50: 120
A51: Chou-fleur | B51: Rendement (t/ha) | C51: N | D51: P2O5 | E51: K2O | F51: Navet | G51: Rendement (t/ha) | H51: N | I51: P2O5 | J51: K2O | K51: Tomate | L51: Rendement (t/ha) | M51: N | N51: P2O5 | O51: K2O
B52: 15 | C52: 100 | D52: 60 | E52: 150 | G52: 25 | H52: 80 | I52: 30 | J52: 120 | L52: 20 | M52: 60 | N52: 60 | O52: 120
B53: 20 | C53: 120 | D53: 70 | E53: 180 | G53: 30 | H53: 100 | I53: 45 | J53: 160 | L53: 30 | M53: 80 | N53: 70 | O53: 150
B54: 25 | C54: 140 | D54: 80 | E54: 210 | G54: 35 | H54: 120 | I54: 60 | J54: 200 | L54: 40 | M54: 100 | N54: 80 | O54: 180
B55: 30 | C55: 160 | D55: 90 | E55: 240 | G55: 40 | H55: 140 | I55: 75 | J55: 240 | L55: 50 | M55: 120 | N55: 90 | O55: 210
B56: 35 | C56: 180 | D56: 100 | E56: 270 | G56: 45 | H56: 160 | I56: 90 | J56: 350 | L56: 60 | M56: 140 | N56: 100 | O56: 240
A57: Chou pommé | B57: Rendement (t/ha) | C57: N | D57: P2O5 | E57: K2O | F57: Oignon | G57: Rendement (t/ha) | H57: N | I57: P2O5 | J57: K2O
B58: 40 | C58: 120 | D58: 70 | E58: 200 | G58: 15 | H58: 120 | I58: 60 | J58: 190
B59: 45 | C59: 135 | D59: 80 | E59: 225 | G59: 20 | H59: 130 | I59: 70 | J59: 210
B60: 50 | C60: 150 | D60: 90 | E60: 250 | G60: 25 | H60: 140 | I60: 80 | J60: 230
B61: 55 | C61: 165 | D61: 100 | E61: 275 | G61: 30 | H61: 150 | I61: 90 | J61: 250
B62: 60 | C62: 180 | D62: 110 | E62: 300 | G62: 35 | H62: 160 | I62: 100 | J62: 270
G66: Légumes
A67: type de culte | B67: Fourrages tempérés | G67: Aïl | H67: i68:i72 | I67: Aïl | J67: Artichaut | K67: Aubergine | L67: Betterave rouge | M67: Carotte | N67: Chou-fleur | O67: Chou pommé | P67: Comcombre | Q67: Courgette | R67: Haricot vert | S67: Laitue | T67: Melon | U67: Navet | V67: Oignon | W67: Pastèque | X67: Poireau | Y67: Poivron | Z67: Pomme de terre | AA67: Radis | AB67: Tomate
B68: Légumes | G68: Artichaut | H68: j68:j72 | I68: 4 | J68: 18 | K68: 30 | L68: 40 | M68: 25 | N68: 15 | O68: 40 | P68: 20 | Q68: 20 | R68: 6 | S68: 40 | T68: 10 | U68: 25 | V68: 15 | W68: 30 | X68: 20 | Y68: 20 | Z68: 15 | AA68: 15 | AB68: 20 | AC68: 1
B69: Fruits | G69: Aubergine | H69: k68:k72 | I69: 6 | J69: 20 | K69: 40 | L69: 45 | M69: 30 | N69: 20 | O69: 45 | P69: 30 | Q69: 25 | R69: 8 | S69: 45 | T69: 20 | U69: 30 | V69: 20 | W69: 35 | X69: 25 | Y69: 30 | Z69: 20 | AA69: 18 | AB69: 30 | AC69: 2
B70: Canne à sucre | G70: Betterave rouge | H70: l68:l72 | I70: 8 | J70: 22 | K70: 50 | L70: 50 | M70: 35 | N70: 25 | O70: 50 | P70: 40 | Q70: 30 | R70: 10 | S70: 50 | T70: 30 | U70: 35 | V70: 25 | W70: 40 | X70: 30 | Y70: 40 | Z70: 25 | AA70: 21 | AB70: 40 | AC70: 3
G71: Carotte | H71: m68:m72 | I71: 10 | J71: 24 | K71: 60 | L71: 55 | M71: 40 | N71: 30 | O71: 55 | P71: 50 | Q71: 35 | R71: 12 | S71: 55 | T71: 40 | U71: 40 | V71: 30 | W71: 45 | X71: 35 | Y71: 50 | Z71: 30 | AA71: 24 | AB71: 50 | AC71: 4
G72: Chou-fleur | H72: n68:n72 | I72: 12 | J72: 26 | K72: 70 | L72: 60 | M72: 45 | N72: 35 | O72: 60 | P72: 60 | Q72: 40 | R72: 14 | S72: 60 | T72: 50 | U72: 45 | V72: 35 | W72: 50 | X72: 40 | Y72: 60 | Z72: 35 | AA72: 27 | AB72: 60 | AC72: 5
G73: Chou pommé | H73: o68:o72
G74: Concombre | H74: p68:p72
G75: Courgette | H75: q68:q72
G76: Haricot vert | H76: r68:r72
G77: Laitue | H77: s68:s72
G78: Melon | H78: t68:t72
G79: Navet | H79: u68:u72
G80: Oignon | H80: v68:v72
G81: Pastèque | H81: w68:w72
G82: Poireau | H82: x68:x72
G83: Poivron | H83: y68:y72
G84: Pomme de terre | H84: z68:z72
G85: Radis | H85: aa68:aa72
G86: Tomate | H86: ab68:ab72
G91: Fruits
G92: Agrumes à la plantation | I92: Agrumes à la plantation | J92: Ananas à la plantation | K92: Bananier à la plantation | L92: Fraise à la plantation | M92: Fruit de la passion à la plantation | N92: Papayer à la plantation | O92: Agrumes en production | P92: Bananier en production | Q92: Fruit de la passion en production | R92: Papayer en production
G93: Ananas à la plantation | O93: 20 | P93: 20 | Q93: 8 | R93: 25
G94: Bananier à la plantation | O94: 30 | P94: 25 | Q94: 12 | R94: 30
G95: Fraise à la plantation | O95: 40 | P95: 30 | R95: 35
G96: Fruit de la passion à la plantation | P96: 35
G97: Papayer à la plantation | P97: 40
G98: Agrumes en production | H98: o93:o95
G99: Bananier en production | H99: p93:p97
G100: Fruit de la passion en production | H100: q93:q94
G101: Papayer en production | H101: r93:r95
G104: Bananier | H104: Rendement (t/ha) | I104: N | J104: P2O5 | K104: K2O
G105: en production | H105: 20 | I105: 240 | J105: 32 | K105: 650
H106: 25 | I106: 270 | J106: 36 | K106: 750
A107: Ananas | B107: Rendement (t/ha) | C107: N | D107: P | E107: K | H107: 30 | I107: 310 | J107: 40 | K107: 870
A108: à la plantation | C108: 69 | D108: 25 | E108: 99 | H108: 35 | I108: 350 | J108: 44 | K108: 970
H109: 40 | I109: 390 | J109: 48 | K109: 1060
A111: Fraise | B111: Rendement (t/ha) | C111: N | D111: P2O5 | E111: K2O
A112: à la plantation | C112: 90 | D112: 30 | E112: 160 | G112: Papayer | H112: Rendement (t/ha) | I112: N | J112: P2O5 | K112: K2O
G113: en production | H113: 25 | I113: 161 | J113: 43 | K113: 107
H114: 30 | I114: 194 | J114: 52 | K114: 129
A115: Bananier | B115: Rendement (t/ha) | C115: N | D115: P2O5 | E115: K2O | H115: 35 | I115: 225 | J115: 60 | K115: 150
A116: à la plantation | C116: 250 | D116: 100 | E116: 650
G118: Fruit de la passion | H118: Rendement (t/ha) | I118: N | J118: P2O5 | K118: K2O
A119: Papayer | B119: Rendement (t/ha) | C119: N | D119: P2O5 | E119: K2O | G119: en production | H119: 8 | I119: 121 | J119: 67 | K119: 147
A120: à la plantation | C120: 161 | D120: 43 | E120: 107 | H120: 12 | I120: 180 | J120: 100 | K120: 220 | M120: s
A123: Fruit de la passion | B123: Rendement (t/ha) | C123: N | D123: P2O5 | E123: K2O | G123: Agrumes | H123: Rendement (t/ha) | I123: N | J123: P2O5 | K123: K2O
A124: à la plantation | C124: 121 | D124: 67 | E124: 147 | G124: en production | H124: 20 | I124: 300 | J124: 70 | K124: 300
H125: 30 | I125: 450 | J125: 105 | K125: 450
H126: 40 | I126: 600 | J126: 140 | K126: 600
A127: Agrumes | B127: Rendement (t/ha) | C127: N | D127: P2O5 | E127: K2O
A128: à la plantation | C128: 60 | D128: 20 | E128: 60

Sheet login
D1: Le logiciel FERTI-RUN est téléchargeable sur le site Internet de la MVAD
D22: Mission de valorisation agricole des déchets (MVAD) | K22: Pierre-François Chabalier
D23: Virginie van de Kerchove | K23: pierre.chabalier@cirad.fr
D24: mvad1.suad@reunion.chambagri.fr

Sheet interface de saisie
B1: Fertilisation organique et minérale
A2: TECHNICIEN | D2: AGRICULTEUR
A3: Nom | D3: Nom
A4: Prénom | D4: prénom
A5: Organisme | D5: Commune sur laquelle est située l'exploitation
D6: Parcelle à fertiliser | E6: Lieu-dit
E7: Référence cadastrale
E8: Coordonnées GPS
E9: Altitude
A13: Liste de vos choix
A14: 0
A15: Type de culture | B15: Matière organique (MO) | C15: Superficie de la parcelle (ha) | D15: Couverture des besoins de la culture (%) | F15: Calcul sur base de | G15: Type de sol
F16: =ChoixCal -> 0 | G16: Sol fixateur en phosphore
A19: Besoins de la culture par an
B20: N | C20: P2O5 | D20: K2O
A21: Besoin de la culture en éléments nutritifs (kilos / ha)
A22: Besoin de la culture en éléments nutritifs (kilos / parcelle)
A26: Caractéristiques agronomiques de la matière organique
B28: N | C28: P2O5 | D28: K2O
A29: Teneur de la MO en éléments nutritifs (kilos / tonne de MO)
A30: Coeff. d'équivalence engrais
A31: Apport en éléments nutritifs par la MO (kilos / tonne de MO)
A34: Quantité de matière organique à épandre sur la parcelle par an
A36: Besoins de la culture couverts par la MO | B36: =apport_perct -> 0
A37: Rappel de la MO sélectionnée | B37: =besoin_culture -> 0
A38: Quantité de MO satisfaisant les besoins de la culture (tonnes)
A39: Quantité de MO maximale à épandre (tonnes)
A40: Apport maximal par épandage
A41: Nombre d'épandages maximum par an
A42: Quantité de MO à épandre (tonnes)
A44: Volume annuel de MO à épandre (m3) | D44: 1
A45: Volume disponible
A46: Contenance de votre épandeur (m3) | F46: =(volume*'caract. MO'!H8)/choix_sup -> 
A47: Nombre de rotations par épandage
A49: Fertilisation organique et minérale de la culture
C52: N | D52: P2O5 | E52: K2O
A53: kg/parcelle | B53: Quantité d'éléments nutritifs apportés par la MO
B54: Complément minéral à apporter
B55: Total fertilisation organique + minérale | C55: =complet_N+apportMO_N -> 0 | D55: =complet_P+apportMO_P -> 0 | E55: =complet_K+apportMO_K -> 0
C57: N | D57: P2O5 | E57: K2O
A58: kg/ha | B58: Quantité d'éléments nutritifs apportés par la MO | C58: =apportMO_N/choix_sup ->  | D58: =apportMO_P/choix_sup ->  | E58: =apportMO_K/choix_sup -> 
B59: Complément minéral à apporter | C59: =complet_N/choix_sup ->  | D59: =complet_P/choix_sup ->  | E59: =complet_K/choix_sup -> 
B60: Total fertilisation organique + minérale | C60: =totalfertiN/choix_sup ->  | D60: =PTotal_fertilisation_P/choix_sup ->  | E60: =KTotal_fertilisation_P/choix_sup -> 
C90: 375

Sheet caract. MO
A1: Teneurs en NPK et CEE des matières organiques
A3: valeurs extraites des fiches du guide de la fertilisation organique et de la mise à jour de février 2007*
A7: Matières organiques | B7: Teneur en Azote total (Nt) | C7: CE-N | D7: Teneur en phosphore total (P2O5) | E7: CE-P2O5 | F7: Teneur en potassium total (K2Ot) | G7: CE-K2O | H7: Poids volumique des MO
A8: Boue d’épuration liquide | B8: 7.4 | C8: 0.6 | D8: 2.9 | E8: 0.6 | F8: 0.6 | G8: 1 | H8: 1 | I8: *
A9: Boue d’épuration pâteuse | B9: 10.3 | C9: 0.45 | D9: 4.7 | E9: 0.6 | F9: 0.8 | G9: 1
A10: Boue d’épuration solide | B10: 24.8 | C10: 0.45 | D10: 18.8 | E10: 0.6 | F10: 2.1 | G10: 1
A11: Boue d’épuration solide-sèche | B11: 45.6 | C11: 0.45 | D11: 24.8 | E11: 0.6 | F11: 2.7 | G11: 1
A12: Compost de déchets verts | B12: 9.1 | C12: 0.1 | D12: 4.3 | E12: 0.5 | F12: 5.8 | G12: 1
A13: Compost de déchets verts et boue d’épuration | B13: 14.4 | C13: 0.15 | D13: 9.5 | E13: 0.5 | F13: 7.9 | G13: 1 | I13: *
A14: Compost de fumier de bovin sur support cellulosique | B14: 7.6 | C14: 0.15 | D14: 3 | E14: 1 | F14: 7.3 | G14: 1
A15: Compost de fumier de poule pondeuse | B15: 13.2 | C15: 0.4 | D15: 25 | E15: 0.65 | F15: 14.7 | G15: 1 | I15: *
A16: Compost de fumier de poulet de chair | B16: 24.7 | C16: 0.4 | D16: 17.3 | E16: 0.65 | F16: 19 | G16: 1 | I16: *
A17: Compost de fumier de poulet de chair et de lisier de porc | B17: 7.7 | C17: 0.15 | D17: 13.2 | E17: 0.65 | F17: 7.9 | G17: 1
A18: Compost de géranium | B18: 9.2 | C18: 0.15 | D18: 1.8 | E18: 0.5 | F18: 8.6 | G18: 1
A19: Compost de lisier de porc et de bagasse | B19: 4.3 | C19: 0.15 | D19: 5 | E19: 0.85 | F19: 2.6 | G19: 1
A20: Ecume de sucrerie | B20: 7.4 | C20: 0.1 | D20: 9.1 | E20: 1 | F20: 1.2 | G20: 1
A21: Fiente de poule pondeuse | B21: 30.6 | C21: 0.6 | D21: 24.5 | E21: 0.65 | F21: 21 | G21: 1
A22: Fumier de bovin | B22: 6.2 | C22: 0.25 | D22: 3.1 | E22: 1 | F22: 7.2 | G22: 1
A23: Fumier de caprin | B23: 9.1 | C23: 0.25 | D23: 3.1 | E23: 1 | F23: 13.9 | G23: 1
A24: Fumier de cheval | B24: 5.3 | C24: 0.23 | D24: 2.6 | E24: 1 | F24: 1.6 | G24: 1
A25: Fumier de lapin | B25: 4.8 | C25: 0.2 | D25: 2.7 | E25: 1 | F25: 3.2 | G25: 1
A26: Fumier de mouton | B26: 8.6 | C26: 0.2 | D26: 4 | E26: 1 | F26: 13.3 | G26: 1
A27: Fumier de poule pondeuse | B27: 12.4 | C27: 0.6 | D27: 20.4 | E27: 0.65 | F27: 10.8 | G27: 1
A28: Fumier de poulet de chair | B28: 22.5 | C28: 0.6 | D28: 20.1 | E28: 0.65 | F28: 18.8 | G28: 1
A29: Lisier de bovin | B29: 3.3 | C29: 0.38 | D29: 1.8 | E29: 1 | F29: 3.8 | G29: 1 | H29: 1
A30: Lisier de lapin | B30: 6 | C30: 0.55 | D30: 4.4 | E30: 1 | F30: 4.9 | G30: 1
A31: Lisier de porc | B31: 3.5 | C31: 0.6 | D31: 2.3 | E31: 0.85 | F31: 3.4 | G31: 1 | H31: 1
A32: Lisier de poule pondeuse | B32: 10.2 | C32: 0.6 | D32: 4.2 | E32: 0.65 | F32: 6.5 | G32: 1
A33: Vinasse de distillerie | B33: 2.6 | C33: 0.2 | D33: 0.7 | E33: 1 | F33: 16 | G33: 1 | H33: 1
C34: soit valeur unique, soit moyenne | E34: soit valeur unique, soit moyenne

Sheet type_matière_organique
A1: Interdictions épandage
A4: Matières organiques | B4: canne à sucre | C4: légumes et fruits passion
A5: Fumier de bovin | B5: Fumier de bovin | C5: Fumier de bovin
A6: Fumier de caprin | B6: Fumier de caprin | C6: Fumier de caprin
A7: Fumier de cheval | B7: Fumier de cheval | C7: Fumier de cheval
A8: Fumier de lapin | B8: Fumier de lapin | C8: Fumier de lapin
A9: Fumier de mouton | B9: Fumier de mouton | C9: Fumier de mouton
A10: Fumier de poulet de chair | B10: Fumier de poulet de chair | C10: Fumier de poulet de chair
A11: Fumier de poule pondeuse | B11: Fumier de poule pondeuse | C11: Fumier de poule pondeuse
A12: Fiente de poule pondeuse | B12: Fiente de poule pondeuse | C12: Fiente de poule pondeuse | K12: voir p.227 NFU
A13: Lisier de bovin | B13: Lisier de bovin | C13: Compost de fumier de bovin sur support cellulosique
A14: Lisier de lapin | B14: Lisier de lapin | C14: Compost de fumier de poulet de chair
A15: Lisier de porc | B15: Lisier de porc | C15: Compost de fumier de poule pondeuse
A16: Lisier de poule pondeuse | B16: Lisier de poule pondeuse | C16: Compost de fumier de poulet de chair et de lisier de porc
A17: Compost de fumier de bovin sur support cellulosique | B17: Compost de fumier de bovin sur support cellulosique | C17: Compost de lisier de porc et de bagasse
A18: Compost de fumier de poulet de chair | B18: Compost de fumier de poulet de chair | C18: Compost de Géranium
A19: Compost de fumier de poule pondeuse | B19: Compost de fumier de poule pondeuse | C19: Compost de déchets verts
A20: Compost de fumier de poulet de chair et de lisier de porc | B20: Compost de fumier de poulet de chair et de lisier de porc | C20: Compost de déchets verts et boue d’épuration
A21: Compost de lisier de porc et de bagasse | B21: Compost de lisier de porc et de bagasse | C21: Ecume de sucrerie
A22: Compost de Géranium | B22: Compost de Géranium | C22: Vinasse de distillerie
A23: Compost de déchets verts | B23: Compost de déchets verts
A24: Compost de déchets verts et boue d’épuration | B24: Compost de déchets verts et boue d’épuration
A25: Boue d’épuration liquide | B25: Boue d’épuration liquide
A26: Boue d’épuration pâteuse | B26: Boue d’épuration pâteuse
A27: Boue d’épuration solide-sèche | B27: Boue d’épuration solide-sèche
A28: Boue d’épuration solide | B28: Boue d’épuration solide
A29: Ecume de sucrerie | B29: Ecume de sucrerie
A30: Vinasse de distillerie | B30: Vinasse de distillerie

Sheet precaution_epan
B1: apport max. par epandage | D1: prairies tempérées | G1: canne et fruits à la plantation (agrumes, papayer, bananier) | J1: légumes en production | M1: fruits en production | U1: fruits à la plantation | Y1: canne à sucre :
J2: les 20 de la liste | M2: fruit de la passion | P2: agrumes | S2: papayer, bananier | U2: Fraise, ananas : pas de boues ni de lisiers car fruits au sol | Y2: 1 seul épandage /an car impossibilité de pénétrer dans canne après
A3: 1 | B3: 2 | D3: 4 | E3: 5 | G3: 7 | H3: 8 | J3: 10 | K3: 11 | M3: 13 | N3: 14 | O3: 12 | P3: 16 | Q3: 17 | R3: 15 | S3: 19 | T3: 20
A4: Matières organiques | D4: nbre epandage par an | E4: limite sur l'annee | G4: nbre epandage par an | H4: limite sur l'annee | J4: nbre epandage par an | K4: limite sur l'annee | M4: nbre epandage par an | N4: limite sur l'annee | P4: nbre epandage par an | Q4: limite sur l'annee | S4: nbre epandage par an | T4: limite sur l'annee | U4: Agrumes, papayer, bananier : un seul épandage
A5: Boue d’épuration liquide | B5: 30 | D5: =E5/B5 -> 2 | E5: 60 | G5: 1 | H5: =B5*G5 -> 30 | J5: pas de boues sur légumes au sol | M5: pas de boues sur fruits au sol | P5: 3 | Q5: =B5*P5 -> 90 | S5: =T5/B5 -> 6 | T5: 180
A6: Boue d’épuration pâteuse | B6: 25 | D6: 2 | E6: 50 | G6: 1 | H6: =B6*G6 -> 25 | P6: 4 | Q6: =B6*P6 -> 100 | S6: 4 | T6: 100
A7: Boue d’épuration solide | B7: 25 | D7: 2 | E7: 50 | G7: 1 | H7: 25 | P7: 2 | Q7: =B7*P7 -> 50 | S7: 2 | T7: 50
A8: Boue d’épuration solide-sèche | B8: 25 | D8: 2 | E8: 50 | G8: 1 | H8: 25 | P8: 2 | Q8: =B8*P8 -> 50 | S8: 2 | T8: 50
A9: Compost de déchets verts | B9: 25 | D9: 2 | E9: 50 | G9: 1 | H9: 25 | J9: 1 | K9: 50 | M9: =N9/B9 -> 2 | N9: 50 | P9: =Q9/B9 -> 2 | Q9: 50 | S9: 2 | T9: 50
A10: Compost de déchets verts et boue d’épuration | B10: 25 | D10: 2 | E10: 50 | G10: 1 | H10: 25 | J10: 1 | K10: 50 | M10: 2 | N10: 50 | P10: 2 | Q10: 50 | S10: 2 | T10: 50
A11: Compost de fumier de bovin sur support cellulosique | B11: 25 | D11: 2 | E11: 50 | G11: 1 | H11: 25 | J11: 1 | K11: 50 | M11: 2 | N11: 50 | P11: 2 | Q11: 50 | S11: 2 | T11: 50
A12: Compost de fumier de poule pondeuse | B12: 25 | D12: 2 | E12: 50 | G12: 1 | H12: 25 | J12: 1 | K12: 50 | M12: 2 | N12: 50 | P12: 2 | Q12: 50 | S12: 2 | T12: 50
A13: Compost de fumier de poulet de chair | B13: 25 | D13: 2 | E13: 50 | G13: 1 | H13: 25 | J13: 1 | K13: 50 | M13: 2 | N13: 50 | P13: 2 | Q13: 50 | S13: 2 | T13: 50
A14: Compost de fumier de poulet de chair et de lisier de porc | B14: 25 | D14: 2 | E14: 50 | G14: 1 | H14: 25 | J14: 1 | K14: 50 | M14: 2 | N14: 50 | P14: 2 | Q14: 50 | S14: 2 | T14: 50
A15: Compost de Géranium | B15: 25 | D15: 2 | E15: 50 | G15: 1 | H15: 25 | J15: 1 | K15: 50 | M15: 2 | N15: 50 | P15: 2 | Q15: 50 | S15: 2 | T15: 50
A16: Compost de lisier de porc et de bagasse | B16: 25 | D16: 2 | E16: 50 | G16: 1 | H16: 25 | J16: 1 | K16: 50 | M16: 2 | N16: 50 | P16: 2 | Q16: 50 | S16: 2 | T16: 50
A17: Ecume de sucrerie | B17: 25 | D17: 2 | E17: 50 | G17: 1 | H17: 25 | J17: 1 | K17: 50 | M17: 2 | N17: 50 | P17: 2 | Q17: 50 | S17: 2 | T17: 50
A18: Fiente de poule pondeuse | B18: 10 | D18: 2 | E18: 20 | G18: 1 | H18: 10 | J18: 1 | K18: 20 | M18: 2 | N18: 20 | P18: 2 | Q18: 20 | S18: 2 | T18: 20
A19: Fumier de bovin | B19: 25 | D19: 4 | E19: 100 | G19: 1 | H19: 25 | J19: 1 | K19: 100 | M19: 4 | N19: 100 | P19: 4 | Q19: 100 | S19: 4 | T19: 100
A20: Fumier de caprin | B20: 25 | D20: 4 | E20: 100 | G20: 1 | H20: 25 | J20: 1 | K20: 100 | M20: 4 | N20: 100 | P20: 4 | Q20: 100 | S20: 4 | T20: 100
A21: Fumier de cheval | B21: 25 | D21: 4 | E21: 100 | G21: 1 | H21: 25 | J21: 1 | K21: 100 | M21: 4 | N21: 100 | P21: 4 | Q21: 100 | S21: 4 | T21: 100
A22: Fumier de lapin | B22: 25 | D22: 4 | E22: 100 | G22: 1 | H22: 25 | J22: 1 | K22: 100 | M22: 4 | N22: 100 | P22: 4 | Q22: 100 | S22: 4 | T22: 100
A23: Fumier de mouton | B23: 25 | D23: 4 | E23: 100 | G23: 1 | H23: 25 | J23: 1 | K23: 100 | M23: 4 | N23: 100 | P23: 4 | Q23: 100 | S23: 4 | T23: 100
A24: Fumier de poule pondeuse | B24: 25 | D24: 4 | E24: 100 | G24: 1 | H24: 25 | J24: 1 | K24: 100 | M24: 4 | N24: 100 | P24: 4 | Q24: 100 | S24: 4 | T24: 100
A25: Fumier de poulet de chair | B25: 25 | D25: 4 | E25: 100 | G25: 1 | H25: 25 | J25: 1 | K25: 100 | M25: 4 | N25: 100 | P25: 4 | Q25: 100 | S25: 4 | T25: 100
A26: Lisier de bovin | B26: 60 | D26: 2 | E26: 120 | G26: 1 | H26: 60 | J26: pas de lisiers sur légumes au sol | M26: pas de lisiers sur fruits au sol | P26: 2 | Q26: =B26*P26 -> 120 | S26: 2 | T26: 120
A27: Lisier de lapin | B27: 60 | D27: 2 | E27: 120 | G27: 1 | H27: 60 | P27: 2 | Q27: =B27*P27 -> 120 | S27: 2 | T27: 120
A28: Lisier de porc | B28: 60 | D28: 2 | E28: 120 | G28: 1 | H28: 60 | P28: 2 | Q28: =B28*P28 -> 120 | S28: 2 | T28: 120
A29: Lisier de poule pondeuse | B29: 60 | D29: 2 | E29: 120 | G29: 1 | H29: 60 | P29: 2 | Q29: =B29*P29 -> 120 | S29: 2 | T29: 120
A30: Vinasse de distillerie | B30: 25 | D30: 2 | E30: 50 | G30: 1 | H30: 25 | J30: 1 | K30: 50 | M30: =N30/B30 -> 2 | N30: 50 | P30: =Q30/B30 -> 2 | Q30: 50 | S30: 2 | T30: 50

Sheet canne
A1: canne à sucre | C1: Scénarios possibles de récolte
A3: note :
A5: =IF(B$21="A","X","") -> X | B5: A | C5: Coupe et chargement manuels
A6: =IF(B$21="B","X","") ->  | B6: B | C6: Coupe manuelle et chargement mécanique
A7: =IF(B$21="B'","X","") ->  | B7: B' | C7: Coupe manuelle et chargement mécanique avec paille
A8: =IF(B$21="C","X","") ->  | B8: C | C8: Coupe mécanique en vert
A9: =IF(B$21="C'","X","") ->  | B9: C' | C9: Coupe mécanique et exportation des pailles pour l'élevage
A10: =IF(B$21="D","X","") ->  | B10: D | C10: Coupe de canne brûlée (manuelle ou mécanique)
A11: =IF(B$21="D'","X","") ->  | B11: D' | C11: Coupe de canne brûlée et exportation des pailles pour l'élevage
C13: Types de sol possibles (pour la fixation de P)
H14: coef multiplicateur
B15: 1 | C15: Sol peu fixateur (sol ferrallitique, sols bruns, autres) | I15: coef 1,2
A16: X | B16: 2 | C16: Sol très fixateur (andosol) | I16: coef 2
E18: Exportation minérale
A19: Mode de conduite | E19: ne pas modifier
A20: cases à remplir | E20: Tige Usinable | G20: 90 | H20: %
A21: Type de Récolte : | B21: A | E21: Feuilles Mortes | G21: =IF(B$21="A",0,IF(OR(B$21="B",B$21="C"),10,IF(B$21="B'",30,IF(B$21="C'",40,IF(OR(B$21="D",B$21="D'"),100))))) -> 0 | H21: %
A22: Rendement (t/ha) : | B22: 100 | E22: Feuilles Vertes | G22: =IF(OR(B$21="A",B$21="D"),5,IF(B$21="B",10,IF(B$21="B'",30,IF(B$21="C",20,IF(B$21="C'",60,IF(B$21="D'",70)))))) -> 5 | H22: %
A23: Type de Sol : | B23: 1 | E23: Choux | G23: =IF(OR(B$21="A",B$21="D"),5,IF(B$21="B",10,IF(B$21="B'",40,IF(B$21="C",20,IF(B$21="C'",80,IF(B$21="D'",70)))))) -> 5 | H23: %
E24: Combution N | G24: =IF(OR(B21="D",B21="D'"),50,0) -> 0 | H24: %
A26: tableau 1 : Composition de la canne en matière sèche et teneurs en éléments
B27: ne pas changer sans besoin
C28: complément = biomasse résiduelle au champ
B29: Choux | C29: Proportion | D29: N | E29: P2O5 | F29: K2O | G29: CaO | H29: MgO
A30: Tige usinable | B30: 0 | C30: 0.55 | D30: 0.0023 | E30: 0.0025 | F30: 0.0075 | G30: 0.0014 | H30: 0.001
A31: Tige non usinable | B31: 1 | C31: 0.02 | D31: 0.0025 | E31: 0.0027 | F31: 0.009 | G31: 0.0014 | H31: 0.0012
A32: Feuilles mortes | B32: 0 | C32: 0.16 | D32: 0.0022 | E32: 0.0022 | F32: 0.006 | G32: 0.0056 | H32: 0.0024
A33: Limbes verts | B33: 0.7 | C33: 0.06 | D33: 0.011 | E33: 0.0045 | F33: 0.018 | G33: 0.0056 | H33: 0.002
A34: Gaines vertes | B34: 0.7 | C34: 0.07 | D34: 0.004 | E34: 0.0033 | F34: 0.023 | G34: 0.0025 | H34: 0.0017
A35: Fouets | B35: 1 | C35: 0.02 | D35: 0.007 | E35: 0.0056 | F35: 0.021 | G35: 0.0017 | H35: 0.0011
A36: Choux | C36: =($B30*C30)+($B31*C31)+($B32*C32)+($B33*C33)+($B34*C34)+($B35*C35) -> 0.131 | D36: =($B30*$C30*D30+$B31*$C31*D31+$B32*$C32*D32+$B33*$C33*D33+$B34*$C34*D34+$B35*$C35*D35)/($B30*$C30+$B31*$C31+$B32*$C32+$B33*$C33+$B34*$C34+$B35*$C35) -> 0.006473282443 | E36: =($B30*$C30*E30+$B31*$C31*E31+$B32*$C32*E32+$B33*$C33*E33+$B34*$C34*E34+$B35*$C35*E35)/($B30*$C30+$B31*$C31+$B32*$C32+$B33*$C33+$B34*$C34+$B35*$C35) -> 0.003944274809 | F36: =($B30*$C30*F30+$B31*$C31*F31+$B32*$C32*F32+$B33*$C33*F33+$B34*$C34*F34+$B35*$C35*F35)/($B30*$C30+$B31*$C31+$B32*$C32+$B33*$C33+$B34*$C34+$B35*$C35) -> 0.01895419847 | G36: =($B30*$C30*G30+$B31*$C31*G31+$B32*$C32*G32+$B33*$C33*G33+$B34*$C34*G34+$B35*$C35*G35)/($B30*$C30+$B31*$C31+$B32*$C32+$B33*$C33+$B34*$C34+$B35*$C35) -> 0.003203816794 | H36: =($B30*$C30*H30+$B31*$C31*H31+$B32*$C32*H32+$B33*$C33*H33+$B34*$C34*H34+$B35*$C35*H35)/($B30*$C30+$B31*$C31+$B32*$C32+$B33*$C33+$B34*$C34+$B35*$C35) -> 0.001628244275
A38: tableau 2 : Quantité de matière sèche produite (t/ha)
A40: Rendement | B40: 80 | C40: 100 | D40: 120 | E40: 150
A41: Total plante en MS | B41: 45 | C41: 52 | D41: 63 | E41: 77
A42: Tige usinable | B42: =B$41*$C30 -> 24.75 | C42: =C$41*$C30 -> 28.6 | D42: =D$41*$C30 -> 34.65 | E42: =E$41*$C30 -> 42.35
A43: Feuilles mortes | B43: =B$41*$C32 -> 7.2 | C43: =C$41*$C32 -> 8.32 | D43: =D$41*$C32 -> 10.08 | E43: =E$41*$C32 -> 12.32
A44: Feuilles vertes | B44: =B$41*($C33+$C34+$C35) -> 6.75 | C44: =C$41*($C33+$C34+$C35) -> 7.8 | D44: =D$41*($C33+$C34+$C35) -> 9.45 | E44: =E$41*($C33+$C34+$C35) -> 11.55
A45: Choux | B45: =B$41*$C36 -> 5.895 | C45: =C$41*$C36 -> 6.812 | D45: =D$41*$C36 -> 8.253 | E45: =E$41*$C36 -> 10.087
A47: tableau 3 : Mobilisations totales des éléments (kg/ha)
A49: Rendement | B49: 80 | C49: 100 | D49: 120 | E49: 150 | F49: Coeff.
A50: N | B50: =(($D$30*B$42)+($D$32*B$43)+((((1-$B$33)*$C$33*$D$33)+((1-$B$34)*$C$34*$D$34)+((1-$B$35)*$C$35*$D$35))/($C$33+$C$34+$C$35)*B$44)+($D$36*B$45))*1000 -> 123.615 | C50: =(($D$30*C$42)+($D$32*C$43)+((((1-$B$33)*$C$33*$D$33)+((1-$B$34)*$C$34*$D$34)+((1-$B$35)*$C$35*$D$35))/($C$33+$C$34+$C$35)*C$44)+($D$36*C$45))*1000 -> 142.844 | D50: =(($D$30*D$42)+($D$32*D$43)+((((1-$B$33)*$C$33*$D$33)+((1-$B$34)*$C$34*$D$34)+((1-$B$35)*$C$35*$D$35))/($C$33+$C$34+$C$35)*D$44)+($D$36*D$45))*1000 -> 173.061 | E50: =(($D$30*E$42)+($D$32*E$43)+((((1-$B$33)*$C$33*$D$33)+((1-$B$34)*$C$34*$D$34)+((1-$B$35)*$C$35*$D$35))/($C$33+$C$34+$C$35)*E$44)+($D$36*E$45))*1000 -> 211.519 | F50: =((B50/B$49)+(C50/C$49)+(D50/D$49)+(E50/E$49))/4 -> 1.456482292
A51: P2O5 | B51: =(($E$30*B$42)+($E$32*B$43)+((((1-$B$33)*$C$33*$E$33)+((1-$B$34)*$C$34*$E$34)+((1-$B$35)*$C$35*$E$35))/($C$33+$C$34+$C$35)*B$44)+($E$36*B$45))*1000 -> 107.73 | C51: =(($E$30*C$42)+($E$32*C$43)+((((1-$B$33)*$C$33*$E$33)+((1-$B$34)*$C$34*$E$34)+((1-$B$35)*$C$35*$E$35))/($C$33+$C$34+$C$35)*C$44)+($E$36*C$45))*1000 -> 124.488 | D51: =(($E$30*D$42)+($E$32*D$43)+((((1-$B$33)*$C$33*$E$33)+((1-$B$34)*$C$34*$E$34)+((1-$B$35)*$C$35*$E$35))/($C$33+$C$34+$C$35)*D$44)+($E$36*D$45))*1000 -> 150.822 | E51: =(($E$30*E$42)+($E$32*E$43)+((((1-$B$33)*$C$33*$E$33)+((1-$B$34)*$C$34*$E$34)+((1-$B$35)*$C$35*$E$35))/($C$33+$C$34+$C$35)*E$44)+($E$36*E$45))*1000 -> 184.338 | F51: =((B51/B$49)+(C51/C$49)+(D51/D$49)+(E51/E$49))/4 -> 1.26931875
A52: K2O | B52: =(($F$30*B$42)+($F$32*B$43)+((((1-$B$33)*$C$33*$F$33)+((1-$B$34)*$C$34*$F$34)+((1-$B$35)*$C$35*$F$35))/($C$33+$C$34+$C$35)*B$44)+($F$36*B$45))*1000 -> 376.875 | C52: =(($F$30*C$42)+($F$32*C$43)+((((1-$B$33)*$C$33*$F$33)+((1-$B$34)*$C$34*$F$34)+((1-$B$35)*$C$35*$F$35))/($C$33+$C$34+$C$35)*C$44)+($F$36*C$45))*1000 -> 435.5 | D52: =(($F$30*D$42)+($F$32*D$43)+((((1-$B$33)*$C$33*$F$33)+((1-$B$34)*$C$34*$F$34)+((1-$B$35)*$C$35*$F$35))/($C$33+$C$34+$C$35)*D$44)+($F$36*D$45))*1000 -> 527.625 | E52: =(($F$30*E$42)+($F$32*E$43)+((((1-$B$33)*$C$33*$F$33)+((1-$B$34)*$C$34*$F$34)+((1-$B$35)*$C$35*$F$35))/($C$33+$C$34+$C$35)*E$44)+($F$36*E$45))*1000 -> 644.875 | F52: =((B52/B$49)+(C52/C$49)+(D52/D$49)+(E52/E$49))/4 -> 4.440494792
A53: CaO | B53: =(($G$30*B$42)+($G$32*B$43)+((((1-$B$33)*$C$33*$G$33)+((1-$B$34)*$C$34*$G$34)+((1-$B$35)*$C$35*$G$35))/($C$33+$C$34+$C$35)*B$44)+($G$36*B$45))*1000 -> 100.755 | C53: =(($G$30*C$42)+($G$32*C$43)+((((1-$B$33)*$C$33*$G$33)+((1-$B$34)*$C$34*$G$34)+((1-$B$35)*$C$35*$G$35))/($C$33+$C$34+$C$35)*C$44)+($G$36*C$45))*1000 -> 116.428 | D53: =(($G$30*D$42)+($G$32*D$43)+((((1-$B$33)*$C$33*$G$33)+((1-$B$34)*$C$34*$G$34)+((1-$B$35)*$C$35*$G$35))/($C$33+$C$34+$C$35)*D$44)+($G$36*D$45))*1000 -> 141.057 | E53: =(($G$30*E$42)+($G$32*E$43)+((((1-$B$33)*$C$33*$G$33)+((1-$B$34)*$C$34*$G$34)+((1-$B$35)*$C$35*$G$35))/($C$33+$C$34+$C$35)*E$44)+($G$36*E$45))*1000 -> 172.403 | F53: =((B53/B$49)+(C53/C$49)+(D53/D$49)+(E53/E$49))/4 -> 1.187136458
A54: MgO | B54: =(($H$30*B$42)+($H$32*B$43)+((((1-$B$33)*$C$33*$H$33)+((1-$B$34)*$C$34*$H$34)+((1-$B$35)*$C$35*$H$35))/($C$33+$C$34+$C$35)*B$44)+($H$36*B$45))*1000 -> 54.855 | C54: =(($H$30*C$42)+($H$32*C$43)+((((1-$B$33)*$C$33*$H$33)+((1-$B$34)*$C$34*$H$34)+((1-$B$35)*$C$35*$H$35))/($C$33+$C$34+$C$35)*C$44)+($H$36*C$45))*1000 -> 63.388 | D54: =(($H$30*D$42)+($H$32*D$43)+((((1-$B$33)*$C$33*$H$33)+((1-$B$34)*$C$34*$H$34)+((1-$B$35)*$C$35*$H$35))/($C$33+$C$34+$C$35)*D$44)+($H$36*D$45))*1000 -> 76.797 | E54: =(($H$30*E$42)+($H$32*E$43)+((((1-$B$33)*$C$33*$H$33)+((1-$B$34)*$C$34*$H$34)+((1-$B$35)*$C$35*$H$35))/($C$33+$C$34+$C$35)*E$44)+($H$36*E$45))*1000 -> 93.863 | F54: =((B54/B$49)+(C54/C$49)+(D54/D$49)+(E54/E$49))/4 -> 0.6463239583
C59: RESULTATS DE LA SIMULATION
A60: scénario de récolte choisi : | E60: =B21 -> A
A62: tableau 4 : Exportation des éléments en fonction du rendement (kg/ha)
A64: Rendement | B64: 80 | C64: 100 | D64: 120 | E64: 150 | F64: Coeff.
A65: N | B65: =1000*((0.01*$G$20*$D$30*B$42+0.01*$G$21*$D$32*B$43)+((0.01*$G$22+(100-$G$22)*0.01*0.01*$G$24)*(((1-$B$33)*$C$33*$D$33+(1-$B$34)*$C$34*$D$34+(1-$B$35)*$C$35*$D$35)/($C$33+$C$34+$C$35))*B$44)+((0.01*$G$23+(100-$G$23)*0.01*0.01*$G$24)*$D$36*B$45)) -> 53.775 | C65: =1000*((0.01*$G$20*$D$30*C$42+0.01*$G$21*$D$32*C$43)+((0.01*$G$22+(100-$G$22)*0.01*0.01*$G$24)*(((1-$B$33)*$C$33*$D$33+(1-$B$34)*$C$34*$D$34+(1-$B$35)*$C$35*$D$35)/($C$33+$C$34+$C$35))*C$44)+((0.01*$G$23+(100-$G$23)*0.01*0.01*$G$24)*$D$36*C$45)) -> 62.14 | D65: =1000*((0.01*$G$20*$D$30*D$42+0.01*$G$21*$D$32*D$43)+((0.01*$G$22+(100-$G$22)*0.01*0.01*$G$24)*(((1-$B$33)*$C$33*$D$33+(1-$B$34)*$C$34*$D$34+(1-$B$35)*$C$35*$D$35)/($C$33+$C$34+$C$35))*D$44)+((0.01*$G$23+(100-$G$23)*0.01*0.01*$G$24)*$D$36*D$45)) -> 75.285 | E65: =1000*((0.01*$G$20*$D$30*E$42+0.01*$G$21*$D$32*E$43)+((0.01*$G$22+(100-$G$22)*0.01*0.01*$G$24)*(((1-$B$33)*$C$33*$D$33+(1-$B$34)*$C$34*$D$34+(1-$B$35)*$C$35*$D$35)/($C$33+$C$34+$C$35))*E$44)+((0.01*$G$23+(100-$G$23)*0.01*0.01*$G$24)*$D$36*E$45)) -> 92.015 | F65: =((B65/B$49)+(C65/C$49)+(D65/D$49)+(E65/E$49))/4 -> 0.6335989583
A66: P2O5 | B66: =1000*((0.01*$G$20*$E$30*B$42+0.01*$G$21*$E$32*B$43)+((0.01*$G$22)*(((1-$B$33)*$C$33*$E$33+(1-$B$34)*$C$34*$E$34+(1-$B$35)*$C$35*$E$35)/($C$33+$C$34+$C$35))*B$44)+((0.01*$G$23)*$E$36*B$45)) -> 57.18825 | C66: =1000*((0.01*$G$20*$E$30*C$42+0.01*$G$21*$E$32*C$43)+((0.01*$G$22)*(((1-$B$33)*$C$33*$E$33+(1-$B$34)*$C$34*$E$34+(1-$B$35)*$C$35*$E$35)/($C$33+$C$34+$C$35))*C$44)+((0.01*$G$23)*$E$36*C$45)) -> 66.0842 | D66: =1000*((0.01*$G$20*$E$30*D$42+0.01*$G$21*$E$32*D$43)+((0.01*$G$22)*(((1-$B$33)*$C$33*$E$33+(1-$B$34)*$C$34*$E$34+(1-$B$35)*$C$35*$E$35)/($C$33+$C$34+$C$35))*D$44)+((0.01*$G$23)*$E$36*D$45)) -> 80.06355 | E66: =1000*((0.01*$G$20*$E$30*E$42+0.01*$G$21*$E$32*E$43)+((0.01*$G$22)*(((1-$B$33)*$C$33*$E$33+(1-$B$34)*$C$34*$E$34+(1-$B$35)*$C$35*$E$35)/($C$33+$C$34+$C$35))*E$44)+((0.01*$G$23)*$E$36*E$45)) -> 97.85545 | F66: =((B66/B$49)+(C66/C$49)+(D66/D$49)+(E66/E$49))/4 -> 0.6738152604
A67: K2O | B67: =1000*((0.01*$G$20*$F$30*B$42+0.01*$G$21*$F$32*B$43)+((0.01*$G$22)*(((1-$B$33)*$C$33*$F$33+(1-$B$34)*$C$34*$F$34+(1-$B$35)*$C$35*$F$35)/($C$33+$C$34+$C$35))*B$44)+((0.01*$G$23)*$F$36*B$45)) -> 174.465 | C67: =1000*((0.01*$G$20*$F$30*C$42+0.01*$G$21*$F$32*C$43)+((0.01*$G$22)*(((1-$B$33)*$C$33*$F$33+(1-$B$34)*$C$34*$F$34+(1-$B$35)*$C$35*$F$35)/($C$33+$C$34+$C$35))*C$44)+((0.01*$G$23)*$F$36*C$45)) -> 201.604 | D67: =1000*((0.01*$G$20*$F$30*D$42+0.01*$G$21*$F$32*D$43)+((0.01*$G$22)*(((1-$B$33)*$C$33*$F$33+(1-$B$34)*$C$34*$F$34+(1-$B$35)*$C$35*$F$35)/($C$33+$C$34+$C$35))*D$44)+((0.01*$G$23)*$F$36*D$45)) -> 244.251 | E67: =1000*((0.01*$G$20*$F$30*E$42+0.01*$G$21*$F$32*E$43)+((0.01*$G$22)*(((1-$B$33)*$C$33*$F$33+(1-$B$34)*$C$34*$F$34+(1-$B$35)*$C$35*$F$35)/($C$33+$C$34+$C$35))*E$44)+((0.01*$G$23)*$F$36*E$45)) -> 298.529 | F67: =((B67/B$49)+(C67/C$49)+(D67/D$49)+(E67/E$49))/4 -> 2.055617708
A68: CaO | B68: =1000*((0.01*$G$20*$G$30*B$42+0.01*$G$21*$G$32*B$43)+((0.01*$G$22)*(((1-$B$33)*$C$33*$G$33+(1-$B$34)*$C$34*$G$34+(1-$B$35)*$C$35*$G$35)/($C$33+$C$34+$C$35))*B$44)+((0.01*$G$23)*$G$36*B$45)) -> 32.47425 | C68: =1000*((0.01*$G$20*$G$30*C$42+0.01*$G$21*$G$32*C$43)+((0.01*$G$22)*(((1-$B$33)*$C$33*$G$33+(1-$B$34)*$C$34*$G$34+(1-$B$35)*$C$35*$G$35)/($C$33+$C$34+$C$35))*C$44)+((0.01*$G$23)*$G$36*C$45)) -> 37.5258 | D68: =1000*((0.01*$G$20*$G$30*D$42+0.01*$G$21*$G$32*D$43)+((0.01*$G$22)*(((1-$B$33)*$C$33*$G$33+(1-$B$34)*$C$34*$G$34+(1-$B$35)*$C$35*$G$35)/($C$33+$C$34+$C$35))*D$44)+((0.01*$G$23)*$G$36*D$45)) -> 45.46395 | E68: =1000*((0.01*$G$20*$G$30*E$42+0.01*$G$21*$G$32*E$43)+((0.01*$G$22)*(((1-$B$33)*$C$33*$G$33+(1-$B$34)*$C$34*$G$34+(1-$B$35)*$C$35*$G$35)/($C$33+$C$34+$C$35))*E$44)+((0.01*$G$23)*$G$36*E$45)) -> 55.56705 | F68: =((B68/B$49)+(C68/C$49)+(D68/D$49)+(E68/E$49))/4 -> 0.3826248438
A69: MgO | B69: =1000*((0.01*$G$20*$H$30*B$42+0.01*$G$21*$H$32*B$43)+((0.01*$G$22)*(((1-$B$33)*$C$33*$H$33+(1-$B$34)*$C$34*$H$34+(1-$B$35)*$C$35*$H$35)/($C$33+$C$34+$C$35))*B$44)+((0.01*$G$23)*$H$36*B$45)) -> 22.91625 | C69: =1000*((0.01*$G$20*$H$30*C$42+0.01*$G$21*$H$32*C$43)+((0.01*$G$22)*(((1-$B$33)*$C$33*$H$33+(1-$B$34)*$C$34*$H$34+(1-$B$35)*$C$35*$H$35)/($C$33+$C$34+$C$35))*C$44)+((0.01*$G$23)*$H$36*C$45)) -> 26.481 | D69: =1000*((0.01*$G$20*$H$30*D$42+0.01*$G$21*$H$32*D$43)+((0.01*$G$22)*(((1-$B$33)*$C$33*$H$33+(1-$B$34)*$C$34*$H$34+(1-$B$35)*$C$35*$H$35)/($C$33+$C$34+$C$35))*D$44)+((0.01*$G$23)*$H$36*D$45)) -> 32.08275 | E69: =1000*((0.01*$G$20*$H$30*E$42+0.01*$G$21*$H$32*E$43)+((0.01*$G$22)*(((1-$B$33)*$C$33*$H$33+(1-$B$34)*$C$34*$H$34+(1-$B$35)*$C$35*$H$35)/($C$33+$C$34+$C$35))*E$44)+((0.01*$G$23)*$H$36*E$45)) -> 39.21225 | F69: =((B69/B$49)+(C69/C$49)+(D69/D$49)+(E69/E$49))/4 -> 0.2700085938
A72: rendement choisi : | E72: =B22 -> 100
A74: tableau 5 : Exportations des éléments | E74: Composition du lisier en éléments
A76: N | B76: =B$22*F65 -> 63.35989583 | C76: kg/ha | E76: N | F76: 4 | G76: kg/m3
A77: P2O5 | B77: =B$22*F66 -> 67.38152604 | C77: kg/ha | E77: P2O5 | F77: 3.5 | G77: kg/m3
A78: K2O | B78: =B$22*F67 -> 205.5617708 | C78: kg/ha | E78: K2O | F78: 4 | G78: kg/m3
A79: CaO | B79: =B$22*F68 -> 38.26248438 | C79: kg/ha | E79: CaO | F79: 1
A80: MgO | B80: =B$22*F69 -> 27.00085938 | C80: kg/ha | E80: MgO | F80: 1
E81: entrer les valeurs
A82: tableau 6 : Besoins en éléments fertilisants | E82: (fonction des sols 1 ou 2 )
A84: N | B84: =B76*2 -> 126.7197917 | C84: kg/ha | E84: type de sol choisi = | H84: =B23 -> 1
A85: P2O5 | B85: =IF(B$23=1,B$77*1.2,B$77*2) -> 80.85783125 | C85: kg/ha
A86: K2O | B86: =B78 -> 205.5617708 | C86: kg/ha
A87: CaO | B87: =B$79*1.2 -> 45.91498125 | C87: kg/ha
A88: MgO | B88: =B$80*1.2 -> 32.40103125 | C88: kg/ha
A90: tableau 7 : 1 ére hypothèse optimiste Apport théorique de lisier pour apporter tout l'azote
B91: avec une efficacité de N de 100 %
A92: Dose de lisier théorique (base N) | D92: =B84/F76 -> 31.67994792 | E92: m3
A93: Apport de P2O5 par le lisier | D93: =D92*F77 -> 110.8798177 | E93: kg/ha | F93: apport de N = | H93: =B84 -> 126.7197917
A94: Apport de K2O par le lisier | D94: =D92*F78 -> 126.7197917 | E94: kg/ha | F94: avec une efficacité de 100 %
A95: Apport de complément de K2O engrais | D95: =IF(B86-D94>=0,B86-D94,0) -> 78.84197917 | E95: kg/ha
A97: tableau 8 : 2 ième hypothèse réaliste d'apport optimisé de lisier préconisé pour tout N
B98: avec une efficacité de N de 50 %
A99: Dose de lisier optimisée (base N) | D99: =2*B84/F76 -> 63.35989583 | E99: m3
A100: Apport de P2O5 par le lisier | D100: =D99*F77 -> 221.7596354 | E100: kg/ha | F100: apport de N = | H100: =H93*2 -> 253.4395833
A101: Apport de K2O par le lisier | D101: =D99*F78 -> 253.4395833 | E101: kg/ha | F101: avec une efficacité de 50 %
A102: Apport de complément de K2O engrais | D102: =IF(B86-D101>=0,B86-D101,0) -> 0 | E102: kg/ha | F102: soit = | G102: =H93 -> 126.7197917 | H102: N

Sheet précautions ép.
A1: Précautions épandage
A4: Matières organiques
A5: Fumier de bovin
A6: Fumier de caprin
A7: Fumier de cheval
A8: Fumier de lapin
A9: Fumier de mouton
A10: Fumier de poulet de chair
A11: Fumier de poule pondeuse
A12: Fiente de poule pondeuse
A13: Lisier de bovin
A14: Lisier de lapin
A15: Lisier de porc
A16: Lisier de poule pondeuse
A17: Compost de fumier de bovin sur support cellulosique
A18: Compost de fumier de poulet de chair
A19: Compost de fumier de poule pondeuse
A20: Compost de fumier de poulet de chair et de lisier de porc
A21: Compost de lisier de porc et de bagasse
A22: Compost de Géranium
A23: Compost de déchets verts
A24: Compost de déchets verts et boue d’épuration
A25: Boue d’épuration liquide
A26: Boue d’épuration pâteuse
A27: Boue d’épuration solide-sèche
A28: Boue d’épuration solide
A29: Ecume de sucrerie
A30: Vinasse de distillerie
